fUST/lending_fUST_20250917
["ID","MTS","AMOUNT","RATE_DAILY","PERIOD"]
[385881984,1758089440132,-480.0,0.00022739,3]
[385881985,1758089440143,-911.95,0.00022739,3]
[385881986,1758089440153,-480.0,0.00022739,3]
[385881987,1758089440162,-480.0,0.00022739,3]
[385881988,1758089440172,-480.0,0.00022739,3]
[385881989,1758089440183,-480.0,0.00022739,3]
[385881990,1758089440193,-1541.21,0.00022739,3]
[385881991,1758089440202,-514.23,0.00022739,3]
[385881992,1758089440211,-480.0,0.00022739,3]
[385881993,1758089440221,-480.0,0.00022739,3]
[385881994,1758089440230,-588.31,0.00022739,3]
[385881995,1758089440240,-536.65,0.00022739,3]
[385881996,1758089440249,-480.0,0.00022739,3]
[385881997,1758089440258,-688.24,0.00022739,3]
[385881999,1758089440267,-765.71,0.00022739,3]
[385882001,1758089440276,-480.0,0.00022739,3]
[385882002,1758089440285,-480.0,0.00022739,3]
[385882003,1758089440294,-993.51,0.00022739,3]
[385882004,1758089440303,-480.0,0.00022739,3]
[385882005,1758089440312,-480.0,0.00022739,3]
[385882006,1758089440321,-480.0,0.00022739,3]
[385882008,1758089440331,-480.0,0.00022739,3]
[385882009,1758089440340,-480.0,0.00022739,3]
[385882010,1758089440349,-480.0,0.00022739,3]
[385882011,1758089440358,-480.0,0.00022739,3]
[385882012,1758089440367,-480.0,0.00022739,3]
[385882013,1758089440376,-788.22,0.00022739,3]
[385882014,1758089440386,-480.0,0.00022739,3]
[385882015,1758089440398,-480.0,0.00022739,3]
[385882016,1758089440407,-526.52,0.00022739,3]
[385882017,1758089440416,-1282.0,0.00022739,3]
[385882018,1758089440425,-480.0,0.00022739,3]
[385882019,1758089440435,-480.0,0.00022739,2]
[385882020,1758089440444,-480.0,0.00022739,3]
[385882021,1758089440453,-961.89,0.00022739,3]
[385882022,1758089440462,-480.0,0.00022739,3]
[385882023,1758089440471,-500.0,0.00022743,2]
[385882024,1758089440481,-500.0,0.00022743,2]
[385882025,1758089440492,-506.65816253,0.00022764,2]
[385882026,1758089440501,-1185.73,0.000228,7]
[385882027,1758089440510,-480.0,0.00023013,3]
[385882028,1758089440520,-480.0,0.00023013,3]
[385882029,1758089440530,-5759.83,0.00023013,3]
[385882030,1758089440540,-480.0,0.00023013,3]
[385882031,1758089440550,-480.0,0.00023013,3]
[385882032,1758089440559,-480.0,0.00023013,3]
[385882033,1758089440568,-480.0,0.00023013,3]
[385882034,1758089440577,-480.0,0.00023013,3]
[385882035,1758089440586,-480.0,0.00023013,3]
[385882036,1758089440595,-2865.14,0.00023013,3]
[385882037,1758089440604,-480.0,0.00023013,3]
[385882038,1758089440614,-560.09,0.00023013,3]
[385882039,1758089440623,-570.1,0.00023013,3]
[385882040,1758089440632,-480.0,0.00023013,3]
[385882041,1758089440642,-480.0,0.00023013,3]
[385882042,1758089440651,-480.0,0.00023013,3]
[385882043,1758089440660,-911.95,0.00023013,3]
[385882044,1758089440669,-480.0,0.00023013,3]
[385882045,1758089440679,-480.0,0.00023013,3]
[385882046,1758089440688,-480.0,0.00023013,3]
[385882047,1758089440697,-480.0,0.00023013,3]
[385882048,1758089440707,-1541.21,0.00023013,3]
[385882049,1758089440716,-514.23,0.00023013,3]
[385882050,1758089440725,-480.0,0.00023013,3]
[385882051,1758089440734,-480.0,0.00023013,3]
[385882052,1758089440744,-588.31,0.00023013,3]
[385882053,1758089440753,-536.65,0.00023013,3]
[385882054,1758089440762,-480.0,0.00023013,3]
[385882055,1758089440771,-688.24,0.00023013,3]
[385882056,1758089440779,-765.71,0.00023013,3]
[385882057,1758089440789,-480.0,0.00023013,3]
[385882058,1758089440799,-480.0,0.00023013,3]
[385882059,1758089440808,-993.51,0.00023013,3]
[385882060,1758089440817,-480.0,0.00023013,3]
[385882061,1758089440826,-480.0,0.00023013,3]
[385882062,1758089440835,-490.40772439,0.00023013,3]
[385882063,1758089440844,-480.0,0.00023013,3]
[385882064,1758089440853,-480.0,0.00023013,3]
[385882065,1758089440862,-480.0,0.00023013,3]
[385882066,1758089440871,-480.0,0.00023013,3]
[385882067,1758089440880,-480.0,0.00023013,3]
[385882068,1758089440888,-788.22,0.00023013,3]
[385882069,1758089440897,-480.0,0.00023013,3]
[385882070,1758089440907,-480.0,0.00023013,3]
[385882071,1758089440916,-526.52,0.00023013,3]
[385882072,1758089440924,-1282.0,0.00023013,3]
[385882073,1758089440933,-480.0,0.00023013,3]
[385882074,1758089440942,-480.0,0.00023013,2]
[385882075,1758089440952,-480.0,0.00023013,3]
[385882076,1758089440961,-961.89,0.00023013,3]
[385882077,1758089440970,-480.0,0.00023013,3]
[385882078,1758089440979,-160.0,0.00023071,2]
[385882079,1758089440988,-9576.52208843,0.000231,7]
[385882080,1758089441006,-480.0,0.00021917,2]
[385882081,1758089441015,-1628.39254201,0.000231,7]
[385882082,1758089441026,-3147.6,0.000231,7]
[385882083,1758089441080,-480.0,0.00022191,3]
[385882084,1758089441089,-480.0,0.00022465,3]
[385882085,1758089441098,-480.0,0.00022739,3]
[385882086,1758089441107,-480.0,0.00023013,3]
[385882087,1758089441116,-10991.79536956,0.000231,7]
[385882088,1758089441125,-1257.44256543,0.00023187,2]
[385882089,1758089441134,-600.0,0.00023193,20]
[385882090,1758089441143,-173.32036153,0.00023286,2]
[385882091,1758089441152,-500.0,0.00023286,2]
[385882092,1758089441161,-500.0,0.00023286,2]
[385882093,1758089441170,-313.30318826,0.00023286,2]
[385882094,1758089441180,-480.0,0.00023287,3]
[385882095,1758089441188,-480.0,0.00023287,3]
[385882096,1758089441198,-5759.83,0.00023287,3]
[385882097,1758089441207,-480.0,0.00023287,3]
[385882098,1758089441216,-267.62641003,0.00023287,3]
[385882099,1758089441225,-480.0,0.00023287,3]
[385882100,1758089441235,-480.0,0.00023287,3]
[385882101,1758089441244,-480.0,0.00023287,3]
[385882102,1758089441253,-480.0,0.00023287,3]
[385882103,1758089441262,-2865.14,0.00023287,3]
[385882104,1758089441271,-480.0,0.00023287,3]
[385882105,1758089441280,-560.09,0.00023287,3]
[385882106,1758089441289,-85.94657333,0.00023287,3]
[385882107,1758089441301,-331.33674966,0.00023287,3]
[385882125,1758089444124,-193.82932577,0.00021917,2]
[385882126,1758089444134,-152.81667701,0.00023287,3]
[385882127,1758089444144,-480.0,0.00023287,3]
[385882128,1758089444153,-256.69974922,0.00023287,3]
[385882129,1758089444164,-223.30025078,0.00023287,3]
[385882130,1758089444174,-5608.46,0.00023287,2]
[385882131,1758089444184,-480.0,0.00023287,3]
[385882132,1758089444193,-911.95,0.00023287,3]
[385882133,1758089444203,-480.0,0.00023287,3]
[385882134,1758089444213,-480.0,0.00023287,3]
[385882135,1758089444222,-480.0,0.00023287,3]
[385882136,1758089444231,-1541.21,0.00023287,3]
[385882137,1758089444240,-480.0,0.00023287,3]
[385882138,1758089444250,-514.23,0.00023287,3]
[385882139,1758089444259,-480.0,0.00023287,3]
[385882140,1758089444269,-480.0,0.00023287,3]
[385882141,1758089444279,-588.31,0.00023287,3]
[385882142,1758089444296,-536.65,0.00023287,3]
[385882143,1758089444308,-480.0,0.00023287,3]
[385882144,1758089444318,-688.24,0.00023287,3]
[385882145,1758089444328,-765.71,0.00023287,3]
[385882146,1758089444337,-480.0,0.00023287,3]
[385882147,1758089444347,-338.21939144,0.00023287,3]
[385882165,1758089446694,-410.0,0.00022492,2]
[385882166,1758089446704,-187.93750223,0.00023287,3]
[385882167,1758089446714,-993.51,0.00023287,3]
[385882168,1758089446723,-480.0,0.00023287,3]
[385882169,1758089446733,-549.00498444,0.00023287,3]
[385882170,1758089446742,-480.0,0.00023287,3]
[385882171,1758089446751,-480.0,0.00023287,3]
[385882172,1758089446760,-480.0,0.00023287,3]
[385882173,1758089446769,-480.0,0.00023287,3]
[385882174,1758089446778,-480.0,0.00023287,3]
[385882175,1758089446787,-788.22,0.00023287,3]
[385882176,1758089446796,-480.0,0.00023287,3]
[385882177,1758089446944,-480.0,0.00023287,3]
[385882178,1758089446954,-526.52,0.00023287,3]
[385882179,1758089446963,-1062.37093385,0.00023287,3]
[385882180,1758089532681,592.24653726,0.000199,2]
[385882181,1758089532770,592.24653726,0.00021149,2]
[385882182,1758089750808,548.60183696,0.000199,2]
[385882183,1758089750886,548.60183669,0.00021149,2]
[385882184,1758089943525,512.02838093,0.000199,2]
[385882185,1758089943678,512.02838091,0.00021149,2]
[385882188,1758090134275,477.8817271,0.000199,2]
[385882189,1758090134376,477.88172689,0.00021149,2]
[385882190,1758090189706,800.0,0.00027397,30]
[385882191,1758090211505,800.0,0.00027397,30]
[385882198,1758090331359,446.02294531,0.000199,2]
[385882199,1758090331440,446.02294509,0.00021149,2]
[385882203,1758090518093,115803.588544,0.00026,30]
[385882204,1758090519655,251.21446203,0.00030269,120]
[385882207,1758090527758,311.65084383,0.000199,2]
[385882208,1758090527880,311.65084366,0.00021149,2]
[385882234,1758090632072,-286.53891865,0.00021537,2]
[385882236,1758090632081,-6085.88,0.00021764,2]
[385882237,1758090632090,-300.0,0.00021816,2]
[385882239,1758090632099,-3702.21817511,0.00021817,2]
[385882240,1758090632108,-508.72958089,0.00021917,2]
[385882242,1758090632117,-577.56412352,0.00021917,2]
[385882245,1758090632126,-480.0,0.00021917,2]
[385882246,1758090632135,-480.0,0.00021917,2]
[385882248,1758090632144,-480.0,0.00021917,2]
[385882250,1758090632154,-480.0,0.00021917,2]
[385882251,1758090632163,-281.76545184,0.00021917,2]
[385882252,1758090632172,-621.01,0.00021917,2]
[385882254,1758090632182,-480.0,0.00021917,2]
[385882256,1758090632191,-480.0,0.00021917,2]
[385882258,1758090632200,-480.0,0.00021917,2]
[385882260,1758090632210,-544.55,0.00021917,2]
[385882262,1758090632219,-480.0,0.00021917,2]
[385882264,1758090632228,-480.0,0.00021917,2]
[385882266,1758090632237,-480.0,0.00021917,2]
[385882268,1758090632247,-480.0,0.00021917,2]
[385882270,1758090632256,-480.0,0.00021917,2]
[385882272,1758090632265,-480.0,0.00021917,2]
[385882274,1758090632275,-970.65,0.00021917,2]
[385882276,1758090632284,-480.0,0.00021917,2]
[385882278,1758090632294,-480.0,0.00021917,2]
[385882280,1758090632303,-480.0,0.00021917,2]
[385882282,1758090632312,-480.0,0.00021917,2]
[385882284,1758090632322,-683.96,0.00021917,2]
[385882286,1758090632332,-1155.91,0.00021917,2]
[385882288,1758090632341,-480.0,0.00021917,2]
[385882290,1758090632350,-480.0,0.00021917,2]
[385882292,1758090632360,-480.0,0.00021917,2]
[385882294,1758090632369,-516.18,0.00021917,2]
[385882296,1758090632378,-480.0,0.00021917,2]
[385882298,1758090632388,-480.0,0.00021917,2]
[385882300,1758090632397,-480.0,0.00021917,2]
[385882302,1758090632407,-480.0,0.00021917,2]
[385882304,1758090632417,-480.0,0.00021917,2]
[385882306,1758090632426,-480.0,0.00021917,2]
[385882308,1758090632436,-480.0,0.00021917,2]
[385882310,1758090632445,-480.0,0.00021917,2]
[385882312,1758090632454,-574.29,0.00021917,2]
[385882314,1758090632466,-480.0,0.00021917,2]
[385882316,1758090632475,-475.4956485,0.00021917,2]
[385882318,1758090632485,-264.2211063,0.00021917,2]
[385882320,1758090632494,-745.13,0.00021917,2]
[385882322,1758090632503,-480.0,0.00021917,2]
[385882324,1758090632513,-480.0,0.00021917,2]
[385882326,1758090632522,-480.0,0.00021917,2]
[385882328,1758090632531,-480.0,0.00021917,2]
[385882330,1758090632541,-761.49,0.00021917,2]
[385882332,1758090632551,-480.0,0.00021917,2]
[385882334,1758090632560,-480.0,0.00021917,2]
[385882336,1758090632569,-591.17,0.00021917,2]
[385882338,1758090632579,-4319.87,0.00021917,2]
[385882340,1758090632588,-480.0,0.00021917,2]
[385882342,1758090632597,-480.0,0.00021917,2]
[385882344,1758090632607,-480.0,0.00021917,2]
[385882346,1758090632617,-2148.85,0.00021917,2]
[385882348,1758090632626,-480.0,0.00021917,2]
[385882350,1758090632635,-160.0,0.00021968,2]
[385882352,1758090632644,-160.0,0.00021968,2]
[385882354,1758090632653,-160.0,0.00021968,2]
[385882356,1758090632664,-847.79063332,0.00021968,2]
[385882358,1758090632673,-160.0,0.00021969,2]
[385882360,1758090632683,-160.0,0.00021969,2]
[385882362,1758090632692,-160.0,0.00021969,2]
[385882364,1758090632702,-233.34517135,0.00021969,2]
[385882366,1758090632714,-480.0,0.00022191,3]
[385882368,1758090632725,-480.0,0.00022191,3]
[385882370,1758090632735,-480.0,0.00022191,3]
[385882372,1758090632745,-480.0,0.00022191,3]
[385882374,1758090632755,-480.0,0.00022191,3]
[385882376,1758090632764,-480.0,0.00022191,3]
[385882378,1758090632773,-480.0,0.00022191,3]
[385882380,1758090632783,-970.65,0.00022191,3]
[385882382,1758090632793,-480.0,0.00022191,3]
[385882384,1758090632802,-480.0,0.00022191,3]
[385882386,1758090632812,-480.0,0.00022191,3]
[385882388,1758090632822,-480.0,0.00022191,3]
[385882390,1758090632831,-683.96,0.00022191,3]
[385882392,1758090632840,-1155.91,0.00022191,3]
[385882394,1758090632850,-480.0,0.00022191,3]
[385882396,1758090632859,-521.25260801,0.00022191,3]
[385882398,1758090632868,-480.0,0.00022191,3]
[385882400,1758090632878,-516.18,0.00022191,3]
[385882402,1758090632887,-480.0,0.00022191,3]
[385882404,1758090632896,-480.0,0.00022191,3]
[385882406,1758090632905,-480.0,0.00022191,3]
[385882408,1758090632914,-480.0,0.00022191,3]
[385882410,1758090632924,-480.0,0.00022191,3]
[385882413,1758090632934,-480.0,0.00022191,3]
[385882415,1758090632943,-480.0,0.00022191,3]
[385882417,1758090632952,-480.0,0.00022191,3]
[385882418,1758090632962,-574.29,0.00022191,3]
[385882421,1758090632971,-480.0,0.00022191,3]
[385882423,1758090632982,-745.13,0.00022191,3]
[385882425,1758090632994,-480.0,0.00022191,3]
[385882427,1758090633003,-480.0,0.00022191,3]
[385882429,1758090633013,-480.0,0.00022191,3]
[385882431,1758090633022,-480.0,0.00022191,3]
[385882432,1758090633032,-761.49,0.00022191,3]
[385882433,1758090633041,-480.0,0.00022191,3]
[385882435,1758090633051,-480.0,0.00022191,3]
[385882436,1758090633063,-591.17,0.00022191,3]
[385882437,1758090633073,-4319.87,0.00022191,3]
[385882438,1758090633082,-480.0,0.00022191,3]
[385882439,1758090633092,-480.0,0.00022191,2]
[385882440,1758090633101,-480.0,0.00022191,3]
[385882441,1758090633110,-407.14153904,0.00022191,3]
[385882442,1758090633119,-2148.85,0.00022191,3]
[385882443,1758090633129,-179.82017982,0.00022374,2]
[385882444,1758090633138,-311.65084366,0.00022398,2]
[385882445,1758090633147,-480.0,0.00022465,3]
[385882446,1758090633157,-480.0,0.00022465,3]
[385882447,1758090633167,-480.0,0.00022465,3]
[385882448,1758090633176,-480.0,0.00022465,3]
[385882449,1758090633186,-480.0,0.00022465,3]
[385882450,1758090633195,-480.0,0.00022465,3]
[385882451,1758090633204,-480.0,0.00022465,3]
[385882452,1758090633215,-970.65,0.00022465,3]
[385882453,1758090633224,-480.0,0.00022465,3]
[385882454,1758090633234,-480.0,0.00022465,3]
[385882455,1758090633243,-480.0,0.00022465,3]
[385882456,1758090633253,-480.0,0.00022465,3]
[385882457,1758090633263,-683.96,0.00022465,3]
[385882458,1758090633273,-1155.91,0.00022465,3]
[385882459,1758090633282,-480.0,0.00022465,3]
[385882460,1758090633291,-480.0,0.00022465,3]
[385882461,1758090633300,-516.18,0.00022465,3]
[385882462,1758090633310,-480.0,0.00022465,3]
[385882463,1758090633319,-480.0,0.00022465,3]
[385882464,1758090633329,-480.0,0.00022465,3]
[385882465,1758090633338,-480.0,0.00022465,3]
[385882466,1758090633347,-480.0,0.00022465,3]
[385882467,1758090633357,-480.0,0.00022465,3]
[385882468,1758090633366,-480.0,0.00022465,3]
[385882469,1758090633376,-480.0,0.00022465,3]
[385882470,1758090633385,-574.29,0.00022465,3]
[385882471,1758090633395,-480.0,0.00022465,3]
[385882472,1758090633404,-745.13,0.00022465,3]
[385882473,1758090633414,-480.0,0.00022465,3]
[385882474,1758090633423,-480.0,0.00022465,3]
[385882475,1758090633432,-480.0,0.00022465,3]
[385882476,1758090633442,-480.0,0.00022465,3]
[385882477,1758090633452,-761.49,0.00022465,3]
[385882478,1758090633462,-480.0,0.00022465,3]
[385882479,1758090633472,-480.0,0.00022465,3]
[385882480,1758090633481,-591.17,0.00022465,3]
[385882481,1758090633490,-480.0,0.00022465,3]
[385882482,1758090633500,-4319.87,0.00022465,3]
[385882483,1758090633509,-480.0,0.00022465,3]
[385882484,1758090633520,-480.0,0.00022465,2]
[385882485,1758090633529,-2148.85,0.00022465,3]
[385882486,1758090633538,-977.0,0.00022653,2]
[385882487,1758090633547,-2157.0,0.00022653,2]
[385882488,1758090633557,-634.0,0.00022653,2]
[385882489,1758090633566,-410.0,0.00022653,2]
[385882490,1758090633576,-492.7,0.00022729,3]
[385882491,1758090633584,-492.66,0.00022729,3]
[385882492,1758090633594,-500.0,0.00022732,2]
[385882493,1758090633603,-500.0,0.00022732,2]
[385882494,1758090633613,-500.0,0.00022732,2]
[385882495,1758090633622,-500.0,0.00022732,2]
[385882496,1758090633754,-500.0,0.00022732,2]
[385882497,1758090633764,-500.0,0.00022732,2]
[385882498,1758090633774,-500.0,0.00022732,2]
[385882499,1758090633784,-469.66503909,0.00022732,2]
[385882500,1758090633793,-500.0,0.00022732,2]
[385882501,1758090633803,-500.0,0.00022732,2]
[385882502,1758090633813,-500.0,0.00022732,2]
[385882503,1758090633822,-500.0,0.00022732,2]
[385882504,1758090633831,-500.0,0.00022732,2]
[385882505,1758090633841,-500.0,0.00022732,2]
[385882506,1758090633850,-500.0,0.00022732,2]
[385882507,1758090633860,-500.0,0.00022732,2]
[385882508,1758090633869,-500.0,0.00022732,2]
[385882509,1758090633878,-500.0,0.00022732,2]
[385882510,1758090633888,-500.0,0.00022732,2]
[385882511,1758090633897,-500.0,0.00022732,2]
[385882512,1758090633907,-179.99532167,0.00022732,2]
[385882513,1758090633917,-500.0,0.00022732,2]
[385882514,1758090633926,-500.0,0.00022732,2]
[385882515,1758090633935,-500.0,0.00022732,2]
[385882516,1758090633944,-614.39422632,0.00022732,2]
[385882517,1758090633953,-500.0,0.00022732,2]
[385882518,1758090633964,-517.36100363,0.00022732,2]
[385882519,1758090633973,-500.0,0.00022732,2]
[385882520,1758090633985,-500.0,0.00022732,2]
[385882521,1758090633996,-500.0,0.00022732,2]
[385882522,1758090634005,-500.0,0.00022732,2]
[385882523,1758090634014,-500.0,0.00022732,2]
[385882524,1758090634024,-500.0,0.00022732,2]
[385882525,1758090634034,-500.0,0.00022732,2]
[385882526,1758090634044,-500.0,0.00022732,2]
[385882527,1758090634053,-500.0,0.00022732,2]
[385882528,1758090634064,-500.0,0.00022732,2]
[385882529,1758090634073,-596.75826457,0.00022732,2]
[385882530,1758090634082,-500.0,0.00022732,2]
[385882531,1758090634091,-500.0,0.00022732,2]
[385882532,1758090634100,-500.0,0.00022732,2]
[385882533,1758090634109,-500.0,0.00022732,2]
[385882534,1758090634118,-500.0,0.00022732,2]
[385882535,1758090634128,-500.0,0.00022732,2]
[385882536,1758090634137,-500.0,0.00022732,2]
[385882537,1758090634146,-500.0,0.00022732,2]
[385882538,1758090634156,-500.0,0.00022732,2]
[385882539,1758090634165,-500.0,0.00022732,2]
[385882540,1758090634174,-500.0,0.00022732,2]
[385882541,1758090634183,-500.0,0.00022732,2]
[385882542,1758090634193,-500.0,0.00022732,2]
[385882543,1758090634201,-500.0,0.00022732,2]
[385882544,1758090634211,-500.0,0.00022732,2]
[385882545,1758090634221,-500.0,0.00022732,2]
[385882546,1758090634230,-500.0,0.00022732,2]
[385882547,1758090634239,-493.56901157,0.00022732,2]
[385882548,1758090634248,-500.0,0.00022732,2]
[385882549,1758090634257,-500.0,0.00022732,2]
[385882550,1758090634267,-500.0,0.00022732,2]
[385882551,1758090634275,-500.0,0.00022732,2]
[385882552,1758090634285,-500.0,0.00022732,2]
[385882553,1758090634294,-500.0,0.00022732,2]
[385882554,1758090634303,-500.0,0.00022732,2]
[385882555,1758090634312,-500.0,0.00022732,2]
[385882556,1758090634322,-500.0,0.00022732,2]
[385882557,1758090634332,-500.0,0.00022732,2]
[385882558,1758090634342,-500.0,0.00022732,2]
[385882559,1758090634351,-500.0,0.00022732,2]
[385882560,1758090634360,-500.0,0.00022732,2]
[385882561,1758090634369,-500.0,0.00022732,2]
[385882562,1758090634378,-500.0,0.00022732,2]
[385882563,1758090634387,-500.0,0.00022732,2]
[385882564,1758090634396,-500.0,0.00022732,2]
[385882565,1758090634405,-152.60037565,0.00022732,2]
[385882566,1758090634414,-500.0,0.00022732,2]
[385882567,1758090634424,-500.0,0.00022732,2]
[385882568,1758090634433,-500.0,0.00022732,2]
[385882569,1758090634442,-500.0,0.00022732,2]
[385882570,1758090634452,-500.0,0.00022732,2]
[385882571,1758090634462,-500.0,0.00022732,2]
[385882572,1758090634471,-500.0,0.00022732,2]
[385882573,1758090634481,-500.0,0.00022732,2]
[385882574,1758090634491,-500.0,0.00022732,2]
[385882575,1758090634500,-500.0,0.00022738,2]
[385882576,1758090634509,-480.0,0.00022739,3]
[385882577,1758090634518,-480.0,0.00022739,3]
[385882578,1758090634528,-480.0,0.00022739,3]
[385882579,1758090634537,-480.0,0.00022739,3]
[385882580,1758090634546,-480.0,0.00022739,3]
[385882581,1758090634555,-480.0,0.00022739,3]
[385882582,1758090634564,-480.0,0.00022739,3]
[385882583,1758090634573,-970.65,0.00022739,3]
[385882584,1758090634582,-480.0,0.00022739,3]
[385882585,1758090634592,-480.0,0.00022739,3]
[385882586,1758090634602,-480.0,0.00022739,3]
[385882587,1758090634611,-480.0,0.00022739,3]
[385882588,1758090634620,-683.96,0.00022739,3]
[385882589,1758090634630,-1155.91,0.00022739,3]
[385882590,1758090634639,-480.0,0.00022739,3]
[385882591,1758090634648,-516.18,0.00022739,3]
[385882592,1758090634657,-480.0,0.00022739,3]
[385882593,1758090634667,-480.0,0.00022739,3]
[385882594,1758090634676,-480.0,0.00022739,3]
[385882595,1758090634685,-612.67858368,0.00022739,3]
[385882596,1758090634694,-480.0,0.00022739,3]
[385882597,1758090634705,-411.47818184,0.00022739,3]
[385882598,1758090634715,-480.0,0.00022739,3]
[385882599,1758090634724,-480.0,0.00022739,3]
[385882600,1758090634734,-480.0,0.00022739,3]
[385882601,1758090634743,-574.29,0.00022739,3]
[385882602,1758090634752,-480.0,0.00022739,3]
[385882603,1758090634761,-745.13,0.00022739,3]
[385882604,1758090634770,-480.0,0.00022739,3]
[385882605,1758090634780,-480.0,0.00022739,3]
[385882606,1758090634789,-480.0,0.00022739,3]
[385882607,1758090634798,-480.0,0.00022739,3]
[385882608,1758090634808,-761.49,0.00022739,3]
[385882609,1758090634817,-480.0,0.00022739,3]
[385882610,1758090634826,-480.0,0.00022739,3]
[385882611,1758090634835,-591.17,0.00022739,3]
[385882612,1758090634844,-480.0,0.00022739,3]
[385882613,1758090634854,-4319.87,0.00022739,3]
[385882614,1758090634863,-480.0,0.00022739,3]
[385882615,1758090634872,-480.0,0.00022739,2]
[385882616,1758090634881,-580.64484742,0.00022739,3]
[385882617,1758090637976,-1568.20515258,0.00022739,3]
[385882618,1758090637989,-500.0,0.0002277,2]
[385882619,1758090637998,-502.04385139,0.00022781,2]
[385882620,1758090638007,-507.20091411,0.00022781,2]
[385882621,1758090638016,-502.59571462,0.00022781,2]
[385882622,1758090638027,-500.0,0.00022781,2]
[385882623,1758090638036,-503.69107948,0.0002282,2]
[385882624,1758090638045,-504.90039167,0.0002282,2]
[385882625,1758090638055,-501.53364087,0.0002282,2]
[385882626,1758090638064,-501.22495943,0.0002282,2]
[385882627,1758090638073,-500.0,0.0002282,2]
[385882628,1758090638082,-500.0,0.00022828,2]
[385882629,1758090638093,-500.0,0.00022832,2]
[385882630,1758090638102,-508.36439931,0.00022832,2]
[385882631,1758090638110,-754.46553929,0.00022913,2]
[385882632,1758090638122,-481.9852644,0.00022921,2]
[385882633,1758090638132,-480.0,0.00023013,3]
[385882634,1758090638141,-480.0,0.00023013,3]
[385882635,1758090638151,-480.0,0.00023013,3]
[385882636,1758090638160,-480.0,0.00023013,3]
[385882637,1758090638169,-480.0,0.00023013,3]
[385882638,1758090638178,-480.0,0.00023013,3]
[385882639,1758090638187,-970.65,0.00023013,3]
[385882640,1758090638197,-480.0,0.00023013,3]
[385882641,1758090638206,-480.0,0.00023013,3]
[385882642,1758090638216,-480.0,0.00023013,3]
[385882643,1758090638225,-480.0,0.00023013,3]
[385882644,1758090638234,-683.96,0.00023013,3]
[385882645,1758090638243,-1155.91,0.00023013,3]
[385882646,1758090638252,-480.0,0.00023013,3]
[385882647,1758090638261,-516.18,0.00023013,3]
[385882648,1758090638270,-480.0,0.00023013,3]
[385882649,1758090638279,-480.0,0.00023013,3]
[385882650,1758090638287,-480.0,0.00023013,3]
[385882651,1758090638296,-480.0,0.00023013,3]
[385882652,1758090638305,-480.0,0.00023013,3]
[385882653,1758090638314,-480.0,0.00023013,3]
[385882654,1758090638323,-480.0,0.00023013,3]
[385882655,1758090638332,-574.29,0.00023013,3]
[385882656,1758090638341,-480.0,0.00023013,3]